[Event "Titled Tuesday Blitz June 21 Early 2022"]
[White "Samadov, Read"]
[Black "Perez Gormaz, Matias"]
[WhiteFideId "13417444"]
[BlackFideId "3406342"]
[WhiteElo "2084"]
[BlackElo "2341"]
[Result "1-0"]
[Round "06"]
[TimeControl "180+1"]
[Date "2022.06.21"]
[WhiteClock "0:00:44"]
[BlackClock "0:00:10"]

1. d4 {[%clk 0:03:00]}  d5 {[%clk 0:03:00]} 2. c4 {[%clk 0:03:01]}  e6 {[%clk 0:03:00]} 3. Nf3 {[%clk 0:03:01]}  a6 {[%clk 0:03:00]} 4. g3 {[%clk 0:03:02]}  dxc4 {[%clk 0:02:59]} 5. Bg2 {[%clk 0:03:02]}  Nf6 {[%clk 0:03:00]} 6. O-O {[%clk 0:03:03]}  Nc6 {[%clk 0:03:00]} 7. e3 {[%clk 0:03:03]}  Rb8 {[%clk 0:03:00]} 8. Qe2 {[%clk 0:03:03]}  b5 {[%clk 0:02:59]} 9. b3 {[%clk 0:03:04]}  cxb3 {[%clk 0:02:57]} 10. axb3 {[%clk 0:03:04]}  Be7 {[%clk 0:02:54]} 11. Bb2 {[%clk 0:03:02]}  O-O {[%clk 0:02:54]} 12. Rc1 {[%clk 0:03:02]}  Bb7 {[%clk 0:02:54]} 13. Nc3 {[%clk 0:02:47]}  Nb4 {[%clk 0:02:52]} 14. e4 {[%clk 0:02:42]}  c5 {[%clk 0:02:37]} 15. e5 {[%clk 0:02:21]}  Nd7 {[%clk 0:02:33]} 16. Ne4 {[%clk 0:02:16]}  Rc8 {[%clk 0:02:24]} 17. Nd6 {[%clk 0:01:52]}  Bxd6 {[%clk 0:02:17]} 18. exd6 {[%clk 0:01:53]}  cxd4 {[%clk 0:01:58]} 19. Bxd4 {[%clk 0:01:49]}  Bd5 {[%clk 0:01:56]} 20. Qd2 {[%clk 0:01:36]}  Rxc1+ {[%clk 0:01:44]} 21. Rxc1 {[%clk 0:01:34]}  Nc6 {[%clk 0:01:40]} 22. Bb2 {[%clk 0:01:32]}  Nf6 {[%clk 0:00:36]} 23. Qf4 {[%clk 0:01:18]}  Ne8 {[%clk 0:00:34]} 24. Ng5 {[%clk 0:00:59]}  Bxg2 {[%clk 0:00:24]} 25. Kxg2 {[%clk 0:01:00]}  Qd7 {[%clk 0:00:21]} 26. Qe4 {[%clk 0:00:57]}  g6 {[%clk 0:00:08]} 27. Qxc6 {[%clk 0:00:49]}  Qxd6 {[%clk 0:00:09]} 28. Qxd6 {[%clk 0:00:50]}  Nxd6 {[%clk 0:00:10]} 29. Rc6 {[%clk 0:00:47]}  Rd8 {[%clk 0:00:10]} 30. Bf6 {[%clk 0:00:44]} 1-0


[Site "https://www.chess.com"]

[Event "Titled Tuesday Blitz June 21 Early 2022"]
[White "Samsonkin, Artiom"]
[Black "Malyi, Viacheslav"]
[WhiteFideId "13503111"]
[BlackFideId "14123983"]
[WhiteElo "2513"]
[BlackElo "2270"]
[Result "1-0"]
[Round "06"]
[TimeControl "180+1"]
[Date "2022.06.21"]
[WhiteClock "0:00:09"]
[BlackClock "0:00:51"]

1. d4 {[%clk 0:03:00]}  d5 {[%clk 0:02:57]} 2. Nf3 {[%clk 0:03:00]}  Nf6 {[%clk 0:02:55]} 3. Bf4 {[%clk 0:03:00]}  c6 {[%clk 0:02:53]} 4. c3 {[%clk 0:02:55]}  Bf5 {[%clk 0:02:52]} 5. Nbd2 {[%clk 0:02:52]}  e6 {[%clk 0:02:52]} 6. e3 {[%clk 0:02:51]}  Bd6 {[%clk 0:02:53]} 7. Bg3 {[%clk 0:02:51]}  Bxg3 {[%clk 0:02:50]} 8. hxg3 {[%clk 0:02:51]}  Nbd7 {[%clk 0:02:51]} 9. Nh4 {[%clk 0:02:41]}  Qb6 {[%clk 0:02:49]} 10. Qb3 {[%clk 0:02:33]}  Qxb3 {[%clk 0:02:48]} 11. axb3 {[%clk 0:02:34]}  Ne4 {[%clk 0:02:47]} 12. Nxe4 {[%clk 0:02:27]}  Bxe4 {[%clk 0:02:43]} 13. f3 {[%clk 0:02:27]}  Bg6 {[%clk 0:02:44]} 14. Nxg6 {[%clk 0:02:27]}  fxg6 {[%clk 0:02:45]} 15. f4 {[%clk 0:02:10]}  Ke7 {[%clk 0:02:40]} 16. Bd3 {[%clk 0:02:08]}  a6 {[%clk 0:02:38]} 17. b4 {[%clk 0:02:08]}  Nf6 {[%clk 0:02:37]} 18. Kd2 {[%clk 0:02:06]}  Kf7 {[%clk 0:02:27]} 19. Rh4 {[%clk 0:01:59]}  h5 {[%clk 0:02:24]} 20. b3 {[%clk 0:01:42]}  Ng4 {[%clk 0:02:19]} 21. c4 {[%clk 0:01:27]}  Nf6 {[%clk 0:02:18]} 22. Rhh1 {[%clk 0:01:23]}  Ng4 {[%clk 0:02:15]} 23. b5 {[%clk 0:01:07]}  Nf2 {[%clk 0:02:12]} 24. Rhc1 {[%clk 0:00:53]}  Nxd3 {[%clk 0:01:59]} 25. Kxd3 {[%clk 0:00:52]}  h4 {[%clk 0:01:59]} 26. bxc6 {[%clk 0:00:44]}  bxc6 {[%clk 0:01:58]} 27. cxd5 {[%clk 0:00:41]}  cxd5 {[%clk 0:01:58]} 28. Rc7+ {[%clk 0:00:42]}  Kf6 {[%clk 0:01:56]} 29. g4 {[%clk 0:00:43]}  h3 {[%clk 0:01:54]} 30. g5+ {[%clk 0:00:36]}  Kf5 {[%clk 0:01:54]} 31. gxh3 {[%clk 0:00:37]}  Rxh3 {[%clk 0:01:52]} 32. Rg1 {[%clk 0:00:30]}  e5 {[%clk 0:01:34]} 33. dxe5 {[%clk 0:00:29]}  Rb8 {[%clk 0:01:33]} 34. Rb1 {[%clk 0:00:26]}  Rb4 {[%clk 0:01:32]} 35. Rxg7 {[%clk 0:00:21]}  d4 {[%clk 0:01:16]} 36. Rf7+ {[%clk 0:00:21]}  Kg4 {[%clk 0:01:10]} 37. Ke4 {[%clk 0:00:16]}  Rxe3+ {[%clk 0:01:08]} 38. Kd5 {[%clk 0:00:16]}  d3 {[%clk 0:01:08]} 39. Rd1 {[%clk 0:00:16]}  Rxb3 {[%clk 0:01:04]} 40. f5 {[%clk 0:00:13]}  Kxg5 {[%clk 0:01:01]} 41. Rg1+ {[%clk 0:00:10]}  Kh5 {[%clk 0:00:51]} 42. Rh7# {[%clk 0:00:09]} 1-0


[Site "https://www.chess.com"]

[Event "Titled Tuesday Blitz June 21 Early 2022"]
[White "So, Wesley"]
[Black "Martinez Alcantara, Jose Eduardo"]
[WhiteFideId "5202213"]
[BlackFideId "3805662"]
[WhiteElo "2742"]
[BlackElo "2703"]
[Result "1/2-1/2"]
[Round "06"]
[TimeControl "180+1"]
[Date "2022.06.21"]
[WhiteClock "0:00:35"]
[BlackClock "0:01:07"]

1. d4 {[%clk 0:03:00]}  Nf6 {[%clk 0:03:00]} 2. c4 {[%clk 0:03:00]}  e6 {[%clk 0:03:00]} 3. Nc3 {[%clk 0:03:00]}  Bb4 {[%clk 0:03:01]} 4. e3 {[%clk 0:03:00]}  O-O {[%clk 0:03:01]} 5. Nf3 {[%clk 0:03:00]}  b6 {[%clk 0:02:57]} 6. Bd3 {[%clk 0:02:58]}  Bb7 {[%clk 0:02:57]} 7. O-O {[%clk 0:02:59]}  c5 {[%clk 0:02:54]} 8. Na4 {[%clk 0:02:56]}  cxd4 {[%clk 0:02:55]} 9. exd4 {[%clk 0:02:57]}  Re8 {[%clk 0:02:55]} 10. a3 {[%clk 0:02:56]}  Bf8 {[%clk 0:02:55]} 11. b4 {[%clk 0:02:51]}  d6 {[%clk 0:02:55]} 12. Re1 {[%clk 0:02:47]}  Nbd7 {[%clk 0:02:53]} 13. Bb2 {[%clk 0:02:39]}  a6 {[%clk 0:02:51]} 14. Nc3 {[%clk 0:02:35]}  Rc8 {[%clk 0:02:50]} 15. Rc1 {[%clk 0:02:34]}  h6 {[%clk 0:02:39]} 16. Bf1 {[%clk 0:02:31]}  Rc7 {[%clk 0:02:39]} 17. Nd2 {[%clk 0:02:29]}  Qa8 {[%clk 0:02:37]} 18. Qb3 {[%clk 0:02:22]}  Rec8 {[%clk 0:02:37]} 19. h3 {[%clk 0:02:20]}  Bc6 {[%clk 0:02:27]} 20. a4 {[%clk 0:02:08]}  a5 {[%clk 0:02:18]} 21. b5 {[%clk 0:01:56]}  Bb7 {[%clk 0:02:18]} 22. Ba3 {[%clk 0:01:57]}  d5 {[%clk 0:01:56]} 23. Bxf8 {[%clk 0:01:57]}  Kxf8 {[%clk 0:01:55]} 24. cxd5 {[%clk 0:01:35]}  Bxd5 {[%clk 0:01:44]} 25. Nxd5 {[%clk 0:01:27]}  Qxd5 {[%clk 0:01:45]} 26. Rxc7 {[%clk 0:00:59]}  Rxc7 {[%clk 0:01:44]} 27. Qb2 {[%clk 0:00:59]}  Kg8 {[%clk 0:01:40]} 28. g3 {[%clk 0:00:58]}  Qd6 {[%clk 0:01:27]} 29. Nc4 {[%clk 0:00:58]}  Qd5 {[%clk 0:01:26]} 30. Ne3 {[%clk 0:00:56]}  Qe4 {[%clk 0:01:15]} 31. Bg2 {[%clk 0:00:49]}  Qd3 {[%clk 0:01:14]} 32. Rd1 {[%clk 0:00:35]}  Qc3 {[%clk 0:01:07]} 33. Qa2 {[%clk 0:00:35]} 1/2-1/2


[Site "https://www.chess.com"]

[Event "Titled Tuesday Blitz June 21 Early 2022"]
[White "Srbis, Jurica"]
[Black "Florescu, Codrut-Constantin"]
[WhiteFideId "14515555"]
[BlackFideId "1202200"]
[WhiteElo "2519"]
[BlackElo "2191"]
[Result "1-0"]
[Round "06"]
[TimeControl "180+1"]
[Date "2022.06.21"]
[WhiteClock "0:01:19"]
[BlackClock "0:00:45"]

1. e4 {[%clk 0:02:49]}  c5 {[%clk 0:02:59]} 2. Nf3 {[%clk 0:02:49]}  e6 {[%clk 0:02:59]} 3. d4 {[%clk 0:02:49]}  cxd4 {[%clk 0:02:59]} 4. Nxd4 {[%clk 0:02:50]}  a6 {[%clk 0:03:00]} 5. Bd3 {[%clk 0:02:50]}  Nf6 {[%clk 0:02:58]} 6. Qe2 {[%clk 0:02:50]}  Qc7 {[%clk 0:02:17]} 7. e5 {[%clk 0:02:50]}  Nd5 {[%clk 0:02:17]} 8. O-O {[%clk 0:02:48]}  d6 {[%clk 0:02:14]} 9. f4 {[%clk 0:02:42]}  dxe5 {[%clk 0:02:06]} 10. fxe5 {[%clk 0:02:43]}  Bc5 {[%clk 0:02:05]} 11. c3 {[%clk 0:02:43]}  O-O {[%clk 0:02:05]} 12. Kh1 {[%clk 0:02:38]}  Nc6 {[%clk 0:02:01]} 13. Nxc6 {[%clk 0:02:38]}  bxc6 {[%clk 0:01:56]} 14. Nd2 {[%clk 0:02:30]}  f5 {[%clk 0:01:45]} 15. exf6 {[%clk 0:02:27]}  Nxf6 {[%clk 0:01:45]} 16. Nf3 {[%clk 0:02:25]}  Bd6 {[%clk 0:01:43]} 17. Bg5 {[%clk 0:02:24]}  e5 {[%clk 0:01:36]} 18. Bc4+ {[%clk 0:02:23]}  Kh8 {[%clk 0:01:35]} 19. Nh4 {[%clk 0:02:24]}  Bg4 {[%clk 0:01:32]} 20. Qe3 {[%clk 0:02:18]}  Nd5 {[%clk 0:01:32]} 21. Qe4 {[%clk 0:02:10]}  Bh5 {[%clk 0:01:15]} 22. Bxd5 {[%clk 0:02:08]}  cxd5 {[%clk 0:01:14]} 23. Qxd5 {[%clk 0:02:09]}  Rab8 {[%clk 0:01:09]} 24. Nf5 {[%clk 0:02:08]}  Bc5 {[%clk 0:01:06]} 25. b4 {[%clk 0:01:58]}  Bb6 {[%clk 0:01:06]} 26. Rac1 {[%clk 0:01:48]}  Rbe8 {[%clk 0:01:05]} 27. Nd6 {[%clk 0:01:46]}  Rb8 {[%clk 0:00:56]} 28. Qxe5 {[%clk 0:01:45]}  Bg6 {[%clk 0:00:54]} 29. c4 {[%clk 0:01:38]}  Qc6 {[%clk 0:00:50]} 30. c5 {[%clk 0:01:36]}  Bc7 {[%clk 0:00:50]} 31. Qe7 {[%clk 0:01:24]}  Bxd6 {[%clk 0:00:45]} 32. cxd6 {[%clk 0:01:19]} 1-0


[Site "https://www.chess.com"]

[Event "Titled Tuesday Blitz June 21 Early 2022"]
[White "Starozhilov, Leonid"]
[Black "Toncheva, Nadya"]
[WhiteFideId "14106752"]
[BlackFideId "2924056"]
[WhiteElo "2699"]
[BlackElo "2529"]
[Result "1-0"]
[Round "06"]
[TimeControl "180+1"]
[Date "2022.06.21"]
[WhiteClock "0:00:09"]
[BlackClock "0:00:04"]

1. Nf3 {[%clk 0:02:21]}  Nf6 {[%clk 0:02:59]} 2. c4 {[%clk 0:02:19]}  e6 {[%clk 0:02:56]} 3. b3 {[%clk 0:02:17]}  b6 {[%clk 0:02:55]} 4. Bb2 {[%clk 0:02:17]}  Bb7 {[%clk 0:02:56]} 5. g3 {[%clk 0:02:16]}  Be7 {[%clk 0:02:49]} 6. Bg2 {[%clk 0:02:16]}  d5 {[%clk 0:02:49]} 7. cxd5 {[%clk 0:02:13]}  exd5 {[%clk 0:02:37]} 8. O-O {[%clk 0:02:10]}  O-O {[%clk 0:02:37]} 9. d4 {[%clk 0:02:08]}  c5 {[%clk 0:02:21]} 10. Nc3 {[%clk 0:02:04]}  Nc6 {[%clk 0:02:06]} 11. Rc1 {[%clk 0:01:58]}  Ne4 {[%clk 0:01:50]} 12. dxc5 {[%clk 0:01:49]}  Nxc3 {[%clk 0:01:42]} 13. Bxc3 {[%clk 0:01:48]}  bxc5 {[%clk 0:01:43]} 14. e3 {[%clk 0:01:39]}  Qd6 {[%clk 0:01:34]} 15. Qd2 {[%clk 0:01:37]}  Rfd8 {[%clk 0:01:30]} 16. Rfd1 {[%clk 0:01:36]}  Rac8 {[%clk 0:01:17]} 17. Bb2 {[%clk 0:01:22]}  Qe6 {[%clk 0:01:02]} 18. h4 {[%clk 0:01:02]}  h6 {[%clk 0:00:57]} 19. Kh2 {[%clk 0:00:56]}  Rc7 {[%clk 0:00:54]} 20. Qe1 {[%clk 0:00:31]}  Ba6 {[%clk 0:00:46]} 21. Bh3 {[%clk 0:00:19]}  Qe4 {[%clk 0:00:43]} 22. Bg2 {[%clk 0:00:19]}  Qf5 {[%clk 0:00:41]} 23. Nd2 {[%clk 0:00:15]}  Nb4 {[%clk 0:00:37]} 24. e4 {[%clk 0:00:14]}  Qg6 {[%clk 0:00:32]} 25. Nf3 {[%clk 0:00:06]}  dxe4 {[%clk 0:00:18]} 26. Rxd8+ {[%clk 0:00:06]}  Bxd8 {[%clk 0:00:18]} 27. Ne5 {[%clk 0:00:06]}  Qf5 {[%clk 0:00:15]} 28. Bxe4 {[%clk 0:00:05]}  Qe6 {[%clk 0:00:12]} 29. a3 {[%clk 0:00:05]}  Nd5 {[%clk 0:00:10]} 30. Rd1 {[%clk 0:00:04]}  Bb7 {[%clk 0:00:08]} 31. Qd2 {[%clk 0:00:05]}  Bf6 {[%clk 0:00:04]} 32. Bxd5 {[%clk 0:00:05]}  Bxd5 {[%clk 0:00:02]} 33. Qxd5 {[%clk 0:00:06]}  Qb6 {[%clk 0:00:01]} 34. Kg2 {[%clk 0:00:03]}  Re7 {[%clk 0:00:01]} 35. Qd8+ {[%clk 0:00:03]}  Kh7 {[%clk 0:00:01]} 36. Qxb6 {[%clk 0:00:03]}  axb6 {[%clk 0:00:02]} 37. f4 {[%clk 0:00:04]}  g6 {[%clk 0:00:02]} 38. Rd6 {[%clk 0:00:04]}  Bg7 {[%clk 0:00:02]} 39. Rxb6 {[%clk 0:00:04]}  f6 {[%clk 0:00:02]} 40. Nc4 {[%clk 0:00:04]}  Re2+ {[%clk 0:00:03]} 41. Kf3 {[%clk 0:00:05]}  Rc2 {[%clk 0:00:04]} 42. Rb7 {[%clk 0:00:05]}  Kg8 {[%clk 0:00:03]} 43. Rb8+ {[%clk 0:00:05]}  Kf7 {[%clk 0:00:03]} 44. Rb7+ {[%clk 0:00:06]}  Kf8 {[%clk 0:00:04]} 45. a4 {[%clk 0:00:07]}  g5 {[%clk 0:00:04]} 46. hxg5 {[%clk 0:00:07]}  hxg5 {[%clk 0:00:04]} 47. fxg5 {[%clk 0:00:08]}  Bh8 {[%clk 0:00:03]} 48. Bxf6 {[%clk 0:00:07]}  Bxf6 {[%clk 0:00:03]} 49. gxf6 {[%clk 0:00:08]}  Rc3+ {[%clk 0:00:03]} 50. Kf4 {[%clk 0:00:08]}  Rc1 {[%clk 0:00:03]} 51. Ne5 {[%clk 0:00:08]}  Rf1+ {[%clk 0:00:04]} 52. Kg5 {[%clk 0:00:09]} 1-0


[Site "https://www.chess.com"]

[Event "Titled Tuesday Blitz June 21 Early 2022"]
[White "Sukandar, Irine Kharisma"]
[Black "Aradhya, Garg"]
[WhiteFideId "7101937"]
[BlackFideId "25006746"]
[WhiteElo "2293"]
[BlackElo "2203"]
[Result "1-0"]
[Round "06"]
[TimeControl "180+1"]
[Date "2022.06.21"]
[WhiteClock "0:00:33"]
[BlackClock "0:00:34"]

1. d4 {[%clk 0:02:58]}  d5 {[%clk 0:02:58]} 2. Nc3 {[%clk 0:02:58]}  Nf6 {[%clk 0:02:57]} 3. Bf4 {[%clk 0:02:59]}  Bf5 {[%clk 0:02:55]} 4. Nb5 {[%clk 0:02:57]}  Na6 {[%clk 0:02:53]} 5. e3 {[%clk 0:02:58]}  c6 {[%clk 0:02:50]} 6. Nc3 {[%clk 0:02:58]}  Qb6 {[%clk 0:02:51]} 7. Na4 {[%clk 0:02:43]}  Qa5+ {[%clk 0:02:50]} 8. Nc3 {[%clk 0:02:43]}  e6 {[%clk 0:02:44]} 9. a3 {[%clk 0:02:42]}  Be7 {[%clk 0:02:39]} 10. f3 {[%clk 0:02:41]}  O-O {[%clk 0:02:37]} 11. g4 {[%clk 0:02:41]}  Bg6 {[%clk 0:02:36]} 12. h4 {[%clk 0:02:42]}  h6 {[%clk 0:02:32]} 13. Bd3 {[%clk 0:02:38]}  Bxd3 {[%clk 0:02:30]} 14. Qxd3 {[%clk 0:02:38]}  c5 {[%clk 0:02:24]} 15. Ne2 {[%clk 0:02:34]}  c4 {[%clk 0:02:23]} 16. Qd2 {[%clk 0:02:33]}  Nd7 {[%clk 0:02:20]} 17. h5 {[%clk 0:02:18]}  b5 {[%clk 0:02:12]} 18. O-O {[%clk 0:02:15]}  Nab8 {[%clk 0:02:07]} 19. Qe1 {[%clk 0:02:13]}  Nc6 {[%clk 0:02:06]} 20. Qg3 {[%clk 0:02:12]}  Qb6 {[%clk 0:02:06]} 21. g5 {[%clk 0:02:10]}  hxg5 {[%clk 0:02:04]} 22. Bxg5 {[%clk 0:02:10]}  Qb8 {[%clk 0:02:04]} 23. Bf4 {[%clk 0:02:06]}  Qd8 {[%clk 0:02:02]} 24. h6 {[%clk 0:02:05]}  g6 {[%clk 0:02:00]} 25. Kg2 {[%clk 0:01:45]}  Kh7 {[%clk 0:02:00]} 26. Rh1 {[%clk 0:01:44]}  Nf6 {[%clk 0:02:00]} 27. Bg5 {[%clk 0:01:39]}  Rg8 {[%clk 0:01:59]} 28. Bxf6 {[%clk 0:01:33]}  Bxf6 {[%clk 0:02:00]} 29. Nf4 {[%clk 0:01:33]}  Rb8 {[%clk 0:01:56]} 30. Nce2 {[%clk 0:01:25]}  a5 {[%clk 0:01:55]} 31. Nh3 {[%clk 0:01:15]}  b4 {[%clk 0:01:54]} 32. a4 {[%clk 0:01:14]}  Be7 {[%clk 0:01:40]} 33. Rag1 {[%clk 0:01:12]}  c3 {[%clk 0:01:31]} 34. b3 {[%clk 0:01:11]}  g5 {[%clk 0:01:22]} 35. Nc1 {[%clk 0:01:00]}  Rg6 {[%clk 0:01:20]} 36. Nd3 {[%clk 0:00:58]}  Bd6 {[%clk 0:01:19]} 37. Qg4 {[%clk 0:00:53]}  f5 {[%clk 0:01:17]} 38. Qh5 {[%clk 0:00:53]}  Qf6 {[%clk 0:01:16]} 39. Kf1 {[%clk 0:00:50]}  Rbg8 {[%clk 0:01:16]} 40. f4 {[%clk 0:00:48]}  gxf4 {[%clk 0:01:15]} 41. Ndxf4 {[%clk 0:00:41]}  Rxh6 {[%clk 0:00:47]} 42. Ng5+ {[%clk 0:00:41]}  Rxg5 {[%clk 0:00:45]} 43. Rxg5 {[%clk 0:00:40]}  Bf8 {[%clk 0:00:36]} 44. Rg6 {[%clk 0:00:35]}  Qxg6 {[%clk 0:00:32]} 45. Qxg6+ {[%clk 0:00:35]}  Kh8 {[%clk 0:00:31]} 46. Rxh6+ {[%clk 0:00:35]}  Bxh6 {[%clk 0:00:32]} 47. Qxh6+ {[%clk 0:00:35]}  Kg8 {[%clk 0:00:32]} 48. Nxe6 {[%clk 0:00:35]}  Kf7 {[%clk 0:00:32]} 49. Ng5+ {[%clk 0:00:35]}  Ke7 {[%clk 0:00:33]} 50. Qxc6 {[%clk 0:00:35]}  Kf8 {[%clk 0:00:33]} 51. Qf6+ {[%clk 0:00:33]}  Kg8 {[%clk 0:00:33]} 52. Qf7+ {[%clk 0:00:33]}  Kh8 {[%clk 0:00:34]} 53. Qh7# {[%clk 0:00:33]} 1-0


[Site "https://www.chess.com"]

[Event "Titled Tuesday Blitz June 21 Early 2022"]
[White "Svane, Frederik"]
[Black "Cherniaiev, Tykhon"]
[WhiteFideId "12923044"]
[BlackFideId "14182360"]
[WhiteElo "2459"]
[BlackElo "2289"]
[Result "1/2-1/2"]
[Round "06"]
[TimeControl "180+1"]
[Date "2022.06.21"]
[WhiteClock "0:00:08"]
[BlackClock "0:00:05"]

1. e4 {[%clk 0:03:00]}  c5 {[%clk 0:02:59]} 2. Nf3 {[%clk 0:03:00]}  e6 {[%clk 0:03:00]} 3. c3 {[%clk 0:02:59]}  d5 {[%clk 0:03:00]} 4. e5 {[%clk 0:02:59]}  d4 {[%clk 0:03:00]} 5. Na3 {[%clk 0:03:00]}  Nc6 {[%clk 0:02:59]} 6. Bd3 {[%clk 0:03:00]}  g6 {[%clk 0:02:59]} 7. O-O {[%clk 0:02:57]}  Bg7 {[%clk 0:02:59]} 8. Nc4 {[%clk 0:02:56]}  Nge7 {[%clk 0:02:54]} 9. Nd6+ {[%clk 0:02:52]}  Kf8 {[%clk 0:02:54]} 10. Re1 {[%clk 0:02:49]}  Nxe5 {[%clk 0:02:45]} 11. Nxe5 {[%clk 0:02:40]}  Qxd6 {[%clk 0:02:45]} 12. Nc4 {[%clk 0:02:37]}  Qc7 {[%clk 0:02:45]} 13. b4 {[%clk 0:02:24]}  cxb4 {[%clk 0:02:42]} 14. cxb4 {[%clk 0:02:19]}  Bd7 {[%clk 0:02:42]} 15. Ba3 {[%clk 0:02:14]}  b5 {[%clk 0:02:41]} 16. Na5 {[%clk 0:02:11]}  Nd5 {[%clk 0:02:39]} 17. Rc1 {[%clk 0:02:10]}  Qb6 {[%clk 0:02:33]} 18. Be4 {[%clk 0:02:10]}  Bf6 {[%clk 0:02:28]} 19. Qf3 {[%clk 0:01:56]}  Kg7 {[%clk 0:02:27]} 20. Bxd5 {[%clk 0:01:57]}  exd5 {[%clk 0:02:28]} 21. Qxd5 {[%clk 0:01:58]}  Be6 {[%clk 0:02:27]} 22. Qf3 {[%clk 0:01:52]}  Rac8 {[%clk 0:02:26]} 23. Bb2 {[%clk 0:01:51]}  Bxa2 {[%clk 0:02:21]} 24. Nc6 {[%clk 0:01:44]}  Rhe8 {[%clk 0:01:51]} 25. Rxe8 {[%clk 0:01:13]}  Rxe8 {[%clk 0:01:52]} 26. Qxf6+ {[%clk 0:01:12]}  Kxf6 {[%clk 0:01:51]} 27. Bxd4+ {[%clk 0:01:13]}  Qxd4 {[%clk 0:01:52]} 28. Nxd4 {[%clk 0:01:14]}  Bc4 {[%clk 0:01:52]} 29. Ra1 {[%clk 0:00:52]}  Re4 {[%clk 0:01:30]} 30. Ra6+ {[%clk 0:00:37]}  Kg7 {[%clk 0:01:28]} 31. Nf3 {[%clk 0:00:37]}  Be2 {[%clk 0:01:25]} 32. d4 {[%clk 0:00:33]}  Bxf3 {[%clk 0:01:24]} 33. gxf3 {[%clk 0:00:34]}  Rxd4 {[%clk 0:01:25]} 34. Rxa7 {[%clk 0:00:35]}  Rxb4 {[%clk 0:01:25]} 35. Rb7 {[%clk 0:00:35]}  Rb1+ {[%clk 0:01:20]} 36. Kg2 {[%clk 0:00:35]}  b4 {[%clk 0:01:20]} 37. Rb6 {[%clk 0:00:34]}  Kf8 {[%clk 0:01:16]} 38. Rb7 {[%clk 0:00:33]}  Ke8 {[%clk 0:01:08]} 39. h4 {[%clk 0:00:32]}  b3 {[%clk 0:01:06]} 40. f4 {[%clk 0:00:27]}  Kd8 {[%clk 0:01:06]} 41. Rxf7 {[%clk 0:00:15]}  Kc8 {[%clk 0:01:02]} 42. Rf8+ {[%clk 0:00:16]}  Kc7 {[%clk 0:01:02]} 43. Rf7+ {[%clk 0:00:16]}  Kc6 {[%clk 0:01:01]} 44. Rf8 {[%clk 0:00:17]}  Kd5 {[%clk 0:00:56]} 45. f5 {[%clk 0:00:16]}  gxf5 {[%clk 0:00:28]} 46. Rxf5+ {[%clk 0:00:16]}  Kd4 {[%clk 0:00:28]} 47. Rb5 {[%clk 0:00:13]}  Kc3 {[%clk 0:00:27]} 48. Rc5+ {[%clk 0:00:11]}  Kb4 {[%clk 0:00:21]} 49. Rc7 {[%clk 0:00:10]}  h5 {[%clk 0:00:19]} 50. Rb7+ {[%clk 0:00:08]}  Kc3 {[%clk 0:00:18]} 51. Rc7+ {[%clk 0:00:08]}  Kd2 {[%clk 0:00:08]} 52. Rd7+ {[%clk 0:00:08]}  Kc2 {[%clk 0:00:09]} 53. Rc7+ {[%clk 0:00:08]}  Kb2 {[%clk 0:00:09]} 54. Rc5 {[%clk 0:00:08]}  Rc1 {[%clk 0:00:09]} 55. Rxh5 {[%clk 0:00:07]}  Rc4 {[%clk 0:00:09]} 56. Kg3 {[%clk 0:00:05]}  Kc2 {[%clk 0:00:10]} 57. Rb5 {[%clk 0:00:05]}  b2 {[%clk 0:00:08]} 58. f3 {[%clk 0:00:03]}  b1=Q {[%clk 0:00:06]} 59. Rxb1 {[%clk 0:00:03]}  Kxb1 {[%clk 0:00:07]} 60. h5 {[%clk 0:00:03]}  Kc2 {[%clk 0:00:08]} 61. f4 {[%clk 0:00:04]}  Kd3 {[%clk 0:00:08]} 62. Kg4 {[%clk 0:00:05]}  Ke4 {[%clk 0:00:08]} 63. h6 {[%clk 0:00:05]}  Rc1 {[%clk 0:00:03]} 64. Kg5 {[%clk 0:00:05]}  Rg1+ {[%clk 0:00:03]} 65. Kf6 {[%clk 0:00:06]}  Kxf4 {[%clk 0:00:03]} 66. h7 {[%clk 0:00:06]}  Rh1 {[%clk 0:00:04]} 67. Kg7 {[%clk 0:00:07]}  Kg5 {[%clk 0:00:05]} 68. h8=Q {[%clk 0:00:07]}  Rxh8 {[%clk 0:00:05]} 69. Kxh8 {[%clk 0:00:08]} 1/2-1/2


[Site "https://www.chess.com"]

[Event "Titled Tuesday Blitz June 21 Early 2022"]
[White "Svane, Rasmus"]
[Black "Heinemann, Josefine"]
[WhiteFideId "4657101"]
[BlackFideId "12900460"]
[WhiteElo "2674"]
[BlackElo "2300"]
[Result "0-1"]
[Round "06"]
[TimeControl "180+1"]
[Date "2022.06.21"]
[WhiteClock "0:00:12"]
[BlackClock "0:00:30"]

1. Nf3 {[%clk 0:03:00]}  d5 {[%clk 0:02:59]} 2. g3 {[%clk 0:03:01]}  Nf6 {[%clk 0:02:58]} 3. Bg2 {[%clk 0:03:02]}  g6 {[%clk 0:02:58]} 4. O-O {[%clk 0:03:02]}  Bg7 {[%clk 0:02:59]} 5. d4 {[%clk 0:03:03]}  O-O {[%clk 0:02:59]} 6. c3 {[%clk 0:03:04]}  a5 {[%clk 0:02:57]} 7. a4 {[%clk 0:03:04]}  Bf5 {[%clk 0:02:56]} 8. Nbd2 {[%clk 0:03:03]}  Ne4 {[%clk 0:02:56]} 9. Nh4 {[%clk 0:03:03]}  Nxd2 {[%clk 0:02:55]} 10. Bxd2 {[%clk 0:03:04]}  Be6 {[%clk 0:02:52]} 11. Qb3 {[%clk 0:03:02]}  b6 {[%clk 0:02:44]} 12. Rfe1 {[%clk 0:03:03]}  c6 {[%clk 0:02:39]} 13. Qc2 {[%clk 0:03:02]}  Nd7 {[%clk 0:02:36]} 14. e4 {[%clk 0:03:03]}  dxe4 {[%clk 0:02:36]} 15. Bxe4 {[%clk 0:03:04]}  Rc8 {[%clk 0:02:31]} 16. Bg2 {[%clk 0:02:58]}  Nf6 {[%clk 0:02:29]} 17. Nf3 {[%clk 0:02:54]}  Bd5 {[%clk 0:02:28]} 18. Bf4 {[%clk 0:02:52]}  Nh5 {[%clk 0:02:12]} 19. Bg5 {[%clk 0:02:51]}  Nf6 {[%clk 0:02:11]} 20. Qe2 {[%clk 0:02:51]}  e6 {[%clk 0:02:03]} 21. h4 {[%clk 0:02:48]}  h6 {[%clk 0:01:59]} 22. Bf4 {[%clk 0:02:48]}  Nh5 {[%clk 0:01:57]} 23. Be3 {[%clk 0:02:46]}  c5 {[%clk 0:01:53]} 24. Red1 {[%clk 0:02:39]}  Qe7 {[%clk 0:01:46]} 25. Ne5 {[%clk 0:02:23]}  Bxg2 {[%clk 0:01:40]} 26. Kxg2 {[%clk 0:02:24]}  Qc7 {[%clk 0:01:34]} 27. Qf3 {[%clk 0:01:47]}  cxd4 {[%clk 0:01:30]} 28. cxd4 {[%clk 0:01:48]}  Nf6 {[%clk 0:01:24]} 29. Rac1 {[%clk 0:01:46]}  Qe7 {[%clk 0:01:23]} 30. Nc6 {[%clk 0:01:41]}  Qd7 {[%clk 0:01:21]} 31. Rc4 {[%clk 0:01:28]}  Nd5 {[%clk 0:01:19]} 32. Rdc1 {[%clk 0:01:28]}  h5 {[%clk 0:01:16]} 33. Bf4 {[%clk 0:01:20]}  Kh7 {[%clk 0:01:07]} 34. b3 {[%clk 0:01:19]}  Rfe8 {[%clk 0:01:01]} 35. Be5 {[%clk 0:01:19]}  Bh6 {[%clk 0:00:55]} 36. R1c2 {[%clk 0:01:14]}  Rf8 {[%clk 0:00:53]} 37. Bf6 {[%clk 0:01:08]}  Rce8 {[%clk 0:00:48]} 38. Bg5 {[%clk 0:01:01]}  Bxg5 {[%clk 0:00:46]} 39. hxg5 {[%clk 0:01:01]}  Qd6 {[%clk 0:00:47]} 40. Ne5 {[%clk 0:01:00]}  Qe7 {[%clk 0:00:45]} 41. Rc6 {[%clk 0:00:30]}  Kg7 {[%clk 0:00:42]} 42. Nc4 {[%clk 0:00:26]}  Qxg5 {[%clk 0:00:39]} 43. Nxb6 {[%clk 0:00:24]}  h4 {[%clk 0:00:37]} 44. Nxd5 {[%clk 0:00:23]}  exd5 {[%clk 0:00:37]} 45. R6c5 {[%clk 0:00:20]}  hxg3 {[%clk 0:00:36]} 46. Rxd5 {[%clk 0:00:19]}  Qh6 {[%clk 0:00:34]} 47. Qxg3 {[%clk 0:00:16]}  Rh8 {[%clk 0:00:30]} 48. Kf3 {[%clk 0:00:12]} 0-1


[Site "https://www.chess.com"]